lending/lending_fUSD_20241228
["ID","MTS","AMOUNT","RATE_DAILY","PERIOD"]
[346894658,1735345833359,-556.05,0.00011729,2]
[346894659,1735345833368,-673.35,0.00011729,2]
[346894660,1735345833377,-500.0,0.00011729,2]
[346894661,1735345833387,-766.02,0.00011729,2]
[346894662,1735345833395,-1452.59,0.00011729,2]
[346894663,1735345833404,-500.0,0.00011729,2]
[346894664,1735345833413,-1141.37,0.00011729,2]
[346894665,1735345833422,-621.2,0.00011729,2]
[346894666,1735345833432,-6224.72,0.00011729,2]
[346894667,1735345833442,-500.0,0.00011729,2]
[346894668,1735345833452,-873.18,0.00011729,2]
[346894669,1735345833462,-500.0,0.00011729,2]
[346894670,1735345833472,-500.0,0.00011729,2]
[346894671,1735345833482,-766.3,0.00011729,2]
[346894672,1735345833491,-546.27,0.00011729,2]
[346894673,1735345833501,-500.0,0.00011729,2]
[346894674,1735345833511,-500.0,0.00011729,2]
[346894675,1735345833522,-750.32,0.00011729,2]
[346894676,1735345833532,-995.73,0.00011729,2]
[346894677,1735345833542,-5107.95,0.00011729,2]
[346894678,1735345833553,-500.0,0.0001173,2]
[346894679,1735345833562,-311.74515929,0.0001173,2]
[346894680,1735345833572,-500.0,0.0001173,2]
[346894681,1735345833582,-500.0,0.0001173,2]
[346894682,1735345833592,-500.0,0.0001173,2]
[346894683,1735345833602,-500.0,0.0001173,2]
[346894684,1735345833612,-500.0,0.0001173,2]
[346894685,1735345833622,-500.0,0.0001173,2]
[346894686,1735345833632,-500.0,0.0001173,2]
[346894687,1735345833642,-500.0,0.0001173,2]
[346894688,1735345833652,-500.0,0.0001173,2]
[346894689,1735345833662,-500.0,0.0001173,2]
[346894690,1735345833672,-500.0,0.0001173,2]
[346894691,1735345833682,-383.43070793,0.0001173,2]
[346894692,1735345833692,-500.0,0.0001173,2]
[346894693,1735345833703,-2313.12,0.0001173,2]
[346894694,1735345833713,-1709.99,0.0001173,2]
[346894695,1735345833722,-500.0,0.0001173,2]
[346894696,1735345833732,-4116.42,0.0001173,2]
[346894697,1735345833743,-500.0,0.0001173,2]
[346894698,1735345833753,-500.0,0.0001173,2]
[346894699,1735345833762,-503.65,0.00011731,2]
[346894700,1735345833772,-491.387,0.0001178,2]
[346894701,1735345833783,-1000.0,0.00011834,2]
[346894702,1735345833792,-500.0,0.00011898,2]
[346894703,1735345833802,-500.0,0.00011898,2]
[346894704,1735345833812,-550.48,0.00011898,2]
[346894705,1735345833821,-500.0,0.00011898,2]
[346894706,1735345833831,-1799.36,0.00011898,2]
[346894707,1735345833841,-628.03654723,0.00011898,2]
[346894708,1735345833850,-541.11,0.00011898,2]
[346894709,1735345833860,-500.0,0.00011898,2]
[346894710,1735345833870,-676.54,0.00011898,2]
[346894711,1735345833880,-500.0,0.00011898,2]
[346894712,1735345833889,-778.86,0.00011898,2]
[346894713,1735345833899,-500.0,0.00011898,2]
[346894714,1735345833909,-702.43,0.00011898,2]
[346894715,1735345833918,-860.48,0.00011898,2]
[346894716,1735345833928,-500.0,0.00011898,2]
[346894717,1735345833938,-514.28,0.00011898,2]
[346894718,1735345833947,-500.0,0.00011898,2]
[346894719,1735345833957,-500.0,0.00011898,2]
[346894720,1735345833967,-500.0,0.00011898,2]
[346894721,1735345833977,-500.0,0.00011899,2]
[346894722,1735345833986,-291.42848388,0.00011899,2]
[346894723,1735345833996,-500.0,0.00011899,2]
[346894724,1735345834006,-558.88095441,0.00011899,2]
[346894725,1735345834016,-500.0,0.00011899,2]
[346894726,1735345834026,-500.0,0.00011899,2]
[346894727,1735345834035,-500.0,0.00011899,2]
[346894728,1735345834046,-477.82330276,0.00011899,2]
[346894729,1735345834056,-500.0,0.00011899,2]
[346894730,1735345834066,-500.0,0.00011899,2]
[346894731,1735345834076,-500.0,0.00011899,2]
[346894732,1735345834087,-500.0,0.00011899,2]
[346894733,1735345834099,-500.0,0.00011899,2]
[346894734,1735345834109,-500.0,0.00011899,2]
[346894735,1735345834118,-500.0,0.00011899,2]
[346894736,1735345834127,-500.0,0.00011899,2]
[346894737,1735345834137,-500.0,0.00011899,2]
[346894738,1735345834146,-500.0,0.00011899,2]
[346894739,1735345834156,-500.0,0.00011899,2]
[346894740,1735345834165,-500.0,0.00011899,2]
[346894741,1735345834175,-483.37717927,0.00011899,2]
[346894742,1735345834185,-500.0,0.00011899,2]
[346894743,1735345834194,-500.0,0.00011899,2]
[346894744,1735345834204,-500.0,0.00011899,2]
[346894745,1735345834214,-500.0,0.00011899,2]
[346894746,1735345834224,-500.0,0.00011899,2]
[346894747,1735345834233,-500.0,0.00011899,2]
[346894748,1735345834243,-500.0,0.00011899,2]
[346894749,1735345834253,-500.0,0.00011899,2]
[346894750,1735345834262,-500.0,0.00011899,2]
[346894751,1735345834272,-500.0,0.00011899,2]
[346894752,1735345834283,-500.0,0.00011899,2]
[346894753,1735345834293,-500.0,0.00011899,2]
[346894754,1735345834303,-500.0,0.00011899,2]
[346894755,1735345834313,-500.0,0.00011899,2]
[346894756,1735345834322,-500.0,0.00011899,2]
[346894757,1735345834332,-500.0,0.00011899,2]
[346894758,1735345834342,-500.0,0.00011899,2]
[346894759,1735345834351,-500.0,0.00011899,2]
[346894760,1735345834361,-500.0,0.00011899,2]
[346894761,1735345834371,-261.15284465,0.00011899,2]
[346894762,1735345834380,-500.0,0.00011899,2]
[346894763,1735345834390,-500.0,0.00011899,2]
[346894764,1735345834399,-500.0,0.00011899,2]
[346894765,1735345834409,-500.0,0.00011899,2]
[346894766,1735345834418,-500.0,0.00011899,2]
[346894767,1735345834427,-500.0,0.00011899,2]
[346894768,1735345834437,-500.0,0.00011899,2]
[346894769,1735345834446,-500.0,0.00011899,2]
[346894770,1735345834457,-500.0,0.00011899,2]
[346894771,1735345834467,-500.0,0.00011899,2]
[346894772,1735345834476,-500.0,0.00011899,2]
[346894773,1735345834486,-620.7210596,0.00011899,2]
[346894774,1735345834495,-391.55,0.000119,2]
[346894775,1735345834504,-5000.0,0.00011904,2]
[346894776,1735345834514,-800.0,0.00011948,2]
[346894777,1735345834523,-276.96,0.00011958,2]
[346894778,1735345834534,-3321.35,0.00011978,2]
[346894779,1735345834544,-500.0,0.00011978,2]
[346894780,1735345834553,-500.0,0.00011978,2]
[346894781,1735345834563,-500.0,0.00011978,2]
[346894782,1735345834574,-570.5,0.00011978,2]
[346894783,1735345834583,-500.0,0.00011978,2]
[346894784,1735345834593,-1870.87,0.00011978,2]
[346894785,1735345834603,-500.0,0.00011978,2]
[346894786,1735345834612,-500.0,0.00011978,2]
[346894787,1735345834622,-569.65,0.00011978,2]
[346894788,1735345834631,-500.0,0.00011978,2]
[346894789,1735345834643,-500.0,0.00011978,2]
[346894790,1735345834653,-530.54,0.00011978,2]
[346894791,1735345834662,-1255.54,0.00011978,2]
[346894792,1735345834672,-500.0,0.00011978,2]
[346894793,1735345834681,-500.0,0.00011979,2]
[346894794,1735345834690,-828.04,0.00011979,2]
[346894795,1735345834700,-500.0,0.00011979,2]
[346894796,1735345834710,-500.0,0.00011979,2]
[346894797,1735345834719,-825.996959,0.00011979,2]
[346894798,1735345834728,-805.909435,0.00011979,2]
[346894799,1735345834738,-2789.49,0.00011979,2]
[346894800,1735345834747,-500.0,0.00011979,2]
[346894801,1735345834756,-500.0,0.00011979,2]
[346894802,1735345834765,-786.1,0.00011979,2]
[346894803,1735345834775,-1397.63,0.00011979,2]
[346894804,1735345834785,-500.0,0.00011979,2]
[346894805,1735345834794,-828.66,0.00011979,2]
[346894806,1735345834804,-500.0,0.00011979,2]
[346894807,1735345834815,-500.0,0.00011979,2]
[346894808,1735345834824,-500.0,0.00011979,2]
[346894809,1735345834834,-500.0,0.00011979,2]
[346894810,1735345834845,-500.0,0.00011979,2]
[346894811,1735345834855,-500.0,0.00011979,2]
[346894812,1735345834864,-500.0,0.00011979,2]
[346894813,1735345834874,-7500.0,0.00011979,2]
[346894814,1735345834883,-40115.58736545,0.0001198,2]
[346894815,1735345834893,-500.0,0.00011999,2]
[346894816,1735345834902,-500.0,0.00011999,2]
[346894817,1735345834912,-503.56,0.00011999,2]
[346894818,1735345834921,-954.73,0.00012003,2]
[346894819,1735345834931,-500.0,0.00012003,2]
[346894820,1735345834941,-1299.02,0.00012003,2]
[346894821,1735345834950,-520.47,0.00012003,2]
[346894822,1735345834959,-1788.61,0.00012003,2]
[346894823,1735345834969,-584.37,0.00012003,2]
[346894824,1735345834979,-878.89,0.00012003,2]
[346894825,1735345834988,-500.0,0.00012003,2]
[346894826,1735345834999,-576.83,0.00012003,2]
[346894827,1735345835009,-695.48,0.00012003,2]
[346894828,1735345835019,-500.0,0.00012003,2]
[346894829,1735345835029,-1328.56,0.00012003,2]
[346894830,1735345835038,-1034.87,0.00012003,2]
[346894831,1735345835048,-500.0,0.00012003,2]
[346894832,1735345835057,-500.0,0.00012003,2]
[346894833,1735345835067,-500.0,0.00012003,2]
[346894834,1735345835076,-749.73,0.00012003,2]
[346894835,1735345835086,-380.93776609,0.00012003,2]
[346894836,1735345835100,-331.67200061,0.00012003,2]
[346894837,1735345835110,-586.87,0.00012003,2]
[346894838,1735345835119,-500.0,0.00012003,2]
[346894839,1735345835128,-334.12338204,0.00012003,2]
[346894840,1735345835139,-500.0,0.00012003,2]
[346894841,1735345835148,-500.0,0.00012003,2]
[346894842,1735345835158,-556.05,0.00012003,2]
[346894843,1735345835169,-673.35,0.00012003,2]
[346894844,1735345835179,-500.0,0.00012003,2]
[346894845,1735345835189,-500.0,0.00012003,2]
[346894846,1735345835199,-766.02,0.00012003,2]
[346894847,1735345835209,-1452.59,0.00012003,2]
[346894848,1735345835219,-500.0,0.00012003,2]
[346894849,1735345835228,-500.0,0.00012003,2]
[346894850,1735345835237,-1141.37,0.00012003,2]
[346894851,1735345835248,-621.2,0.00012003,2]
[346894852,1735345835258,-6224.72,0.00012003,2]
[346894853,1735345835267,-500.0,0.00012003,2]
[346894854,1735345835278,-873.18,0.00012003,2]
[346894855,1735345835287,-500.0,0.00012003,2]
[346894856,1735345835297,-500.0,0.00012003,2]
[346894857,1735345835306,-766.3,0.00012003,2]
[346894858,1735345835316,-546.27,0.00012003,2]
[346894859,1735345835326,-500.0,0.00012003,2]
[346894860,1735345835335,-500.0,0.00012003,2]
[346894861,1735345835345,-750.32,0.00012003,2]
[346894862,1735345835356,-746.85,0.00012003,2]
[346894863,1735345835365,-995.73,0.00012003,2]
[346894864,1735345835375,-5107.95,0.00012003,2]
[346894865,1735345835384,-540.75,0.00012003,2]
[346894866,1735345835394,-500.0,0.00012004,2]
[346894867,1735345835404,-500.0,0.00012004,2]
[346894868,1735345835413,-500.0,0.00012004,2]
[346894869,1735345835423,-500.0,0.00012004,2]
[346894870,1735345835433,-500.0,0.00012004,2]
[346894871,1735345835642,-500.0,0.00012004,2]
[346894872,1735345835653,-500.0,0.00012004,2]
[346894873,1735345835662,-500.0,0.00012004,2]
[346894874,1735345835672,-500.0,0.00012004,2]
[346894875,1735345835681,-500.0,0.00012004,2]
[346894876,1735345835691,-500.0,0.00012004,2]
[346894877,1735345835700,-500.0,0.00012004,2]
[346894878,1735345835709,-500.0,0.00012004,2]
[346894879,1735345835719,-2313.12,0.00012004,2]
[346894880,1735345835728,-1709.99,0.00012004,2]
[346894881,1735345835738,-500.0,0.00012004,2]
[346894882,1735345835747,-4116.42,0.00012004,2]
[346894883,1735345835758,-500.0,0.00012004,2]
[346894884,1735345835768,-500.0,0.00012004,2]
[346894885,1735345835777,-503.65,0.00012005,2]
[346894886,1735345835787,-429.20526385,0.0001203,2]
[346894887,1735345835797,-11340.01427502,0.000121,2]
[346894888,1735345835806,-100000.0,0.000121,2]
[346894889,1735345835816,-1037.33799,0.000121,2]
[346894890,1735345835826,-1388.84793337,0.00012133,3]
[346894891,1735345835836,-587.0,0.00012143,2]
[346894892,1735345835845,-500.0,0.00012172,2]
[346894893,1735345835855,-500.0,0.00012172,2]
[346894894,1735345835864,-550.48,0.00012172,2]
[346894895,1735345835874,-480.16992586,0.00012172,2]
[346894896,1735345835883,-1799.36,0.00012172,2]
[346894897,1735345835893,-541.11,0.00012172,2]
[346894898,1735345835903,-500.0,0.00012172,2]
[346894899,1735345835912,-676.54,0.00012172,2]
[346894900,1735345835922,-500.0,0.00012172,2]
[346894901,1735345835931,-778.86,0.00012172,2]
[346894902,1735345835941,-500.0,0.00012172,2]
[346894903,1735345835950,-702.43,0.00012172,2]
[346894904,1735345835960,-860.48,0.00012172,2]
[346894905,1735345835969,-500.0,0.00012172,2]
[346894906,1735345835978,-514.28,0.00012172,2]
[346894907,1735345835987,-500.0,0.00012172,2]
[346894908,1735345835997,-500.0,0.00012172,2]
[346894909,1735345836007,-500.0,0.00012172,2]
[346894910,1735345836016,-500.0,0.00012173,2]
[346894911,1735345836027,-500.0,0.00012173,2]
[346894912,1735345836037,-433.53719647,0.00012173,2]
[346894913,1735345836046,-500.0,0.00012173,2]
[346894914,1735345836055,-500.0,0.00012173,2]
[346894915,1735345836065,-500.0,0.00012173,2]
[346894916,1735345836075,-500.0,0.00012173,2]
[346894917,1735345836086,-500.0,0.00012173,2]
[346894918,1735345836100,-500.0,0.00012173,2]
[346894919,1735345836109,-500.0,0.00012173,2]
[346894920,1735345836119,-500.0,0.00012173,2]
[346894921,1735345836129,-500.0,0.00012173,2]
[346894922,1735345836139,-614.23015543,0.00012173,2]
[346894923,1735345836149,-500.0,0.00012173,2]
[346894924,1735345836159,-500.0,0.00012173,2]
[346894925,1735345836169,-500.0,0.00012173,2]
[346894926,1735345836178,-500.0,0.00012173,2]
[346894927,1735345836188,-500.0,0.00012173,2]
[346894928,1735345836198,-500.0,0.00012173,2]
[346894929,1735345836207,-500.0,0.00012173,2]
[346894930,1735345836217,-500.0,0.00012173,2]
[346894931,1735345836227,-500.0,0.00012173,2]
[346894932,1735345836236,-500.0,0.00012173,2]
[346894933,1735345836246,-500.0,0.00012173,2]
[346894934,1735345836256,-500.0,0.00012173,2]
[346894935,1735345836266,-500.0,0.00012173,2]
[346894936,1735345836276,-500.0,0.00012173,2]
[346894937,1735345836286,-500.0,0.00012173,2]
[346894938,1735345836296,-500.0,0.00012173,2]
[346894939,1735345836305,-500.0,0.00012173,2]
[346894940,1735345836315,-259.50545651,0.00012173,2]
[346894941,1735345836325,-500.0,0.00012173,2]
[346894942,1735345836335,-288.70835762,0.00012173,2]
[346894943,1735345836345,-500.0,0.00012173,2]
[346894944,1735345836355,-500.0,0.00012173,2]
[346894945,1735345836364,-500.0,0.00012173,2]
[346894946,1735345836373,-500.0,0.00012173,2]
[346894947,1735345836383,-500.0,0.00012173,2]
[346894948,1735345836392,-500.0,0.00012173,2]
[346894949,1735345836402,-502.339372,0.00012173,2]
[346894950,1735345836411,-500.0,0.00012173,2]
[346894951,1735345836421,-150.35445484,0.00012173,2]
[346894952,1735345836431,-500.0,0.00012173,2]
[346894953,1735345836440,-500.0,0.00012173,2]
[346894954,1735345836451,-500.0,0.00012173,2]
[346894955,1735345836461,-500.0,0.00012173,2]
[346894956,1735345836470,-500.0,0.00012173,2]
[346894957,1735345836480,-5149.1894,0.00012177,2]
[346894958,1735345836490,-500.0,0.00012198,2]
[346894959,1735345836499,-500.0,0.00012198,2]
[346894960,1735345836509,-500.0,0.00012198,2]
[346894961,1735345836518,-388.48819132,0.00012198,2]
[346894962,1735345836527,-500.0,0.00012222,2]
[346894963,1735345836538,-3521.58703823,0.00012226,2]
[346894964,1735345836773,-500.0,0.00011456,2]
[346894965,1735345836784,-71.55174878,0.00012226,2]
[346894966,1735345836800,-9282.16531001,0.00012226,2]
[346894967,1735345836811,-5199.46644,0.00012226,2]
[346894968,1735345836829,-652.48802533,0.00012226,2]
[346894969,1735345836840,-11573.87285222,0.00012226,2]
[346894970,1735345836851,-1808.55999338,0.00012226,2]
[346894971,1735345836863,-7801.07724787,0.00012226,2]
[346894972,1735345836875,-3262.74950934,0.00012226,2]
[346894973,1735345836887,-9862.18030121,0.00012226,2]
[346894974,1735345837764,-500.0,0.0001173,2]
[346894975,1735345837775,-1348.00954596,0.00011763,2]
[346894976,1735345837784,-500.0,0.00012004,2]
[346894977,1735345837794,-174.11177238,0.00012199,2]
[346894978,1735345837803,-47223.60183363,0.00012226,2]
[346894979,1735345837814,-4726.93764688,0.00012237,2]
[346894980,1735345837823,-1030.28721595,0.00012251,3]
[346894981,1735345837833,-500.0,0.00012252,2]
[346894982,1735345837842,-500.0,0.00012252,2]
[346894983,1735345837852,-500.0,0.00012252,2]
[346894984,1735345837862,-570.5,0.00012252,2]
[346894985,1735345837872,-500.0,0.00012252,2]
[346894986,1735345837883,-1870.87,0.00012252,2]
[346894987,1735345837895,-500.0,0.00012252,2]
[346894988,1735345837904,-500.0,0.00012252,2]
[346894989,1735345837914,-569.65,0.00012252,2]
[346894990,1735345837924,-500.0,0.00012252,2]
[346894991,1735345837935,-500.0,0.00012252,2]
[346894992,1735345837945,-530.54,0.00012252,2]
[346894993,1735345837955,-1255.54,0.00012252,2]
[346894994,1735345837964,-500.0,0.00012252,2]
[346894995,1735345837974,-500.0,0.00012253,2]
[346894996,1735345837983,-828.04,0.00012253,2]
[346894997,1735345837994,-500.0,0.00012253,2]
[346894998,1735345838003,-500.0,0.00012253,2]
[346894999,1735345838014,-825.996959,0.00012253,2]
[346895000,1735345838023,-805.909435,0.00012253,2]
[346895001,1735345838035,-2789.49,0.00012253,2]
[346895003,1735345838044,-500.0,0.00012253,2]
[346895004,1735345838054,-500.0,0.00012253,2]
[346895005,1735345838063,-786.1,0.00012253,2]
[346895006,1735345838071,-1397.63,0.00012253,2]
[346895007,1735345838080,-500.0,0.00012253,2]
[346895008,1735345838091,-828.66,0.00012253,2]
[346895009,1735345838100,-500.0,0.00012253,2]
[346895010,1735345838110,-500.0,0.00012253,2]
[346895011,1735345838119,-500.0,0.00012253,2]
[346895012,1735345838128,-500.0,0.00012253,2]
[346895013,1735345838137,-500.0,0.00012253,2]
[346895015,1735345838146,-500.0,0.00012253,2]
[346895017,1735345838155,-500.0,0.00012253,2]
[346895019,1735345838165,-500.0,0.00012273,2]
[346895021,1735345838174,-500.0,0.00012273,2]
[346895023,1735345838183,-503.56,0.00012273,2]
[346895025,1735345838193,-954.73,0.00012277,2]
[346895026,1735345838203,-500.0,0.00012277,2]
[346895028,1735345838212,-1299.02,0.00012277,2]
[346895031,1735345838222,-520.47,0.00012277,2]
[346895033,1735345838231,-1788.61,0.00012277,2]
[346895035,1735345838240,-584.37,0.00012277,2]
[346895038,1735345838249,-878.89,0.00012277,2]
[346895042,1735345838258,-500.0,0.00012277,2]
[346895044,1735345838268,-576.83,0.00012277,2]
[346895046,1735345838277,-695.48,0.00012277,2]
[346895047,1735345838287,-500.0,0.00012277,2]
[346895049,1735345838297,-1328.56,0.00012277,2]
[346895052,1735345838306,-1034.87,0.00012277,2]
[346895054,1735345838316,-500.0,0.00012277,2]
[346895056,1735345838325,-500.0,0.00012277,2]
[346895057,1735345838334,-500.0,0.00012277,2]
[346895059,1735345838344,-749.73,0.00012277,2]
[346895062,1735345838354,-151.0,0.00012277,2]
[346895064,1735345838364,-586.87,0.00012277,2]
[346895066,1735345838374,-393.50332929,0.00012277,2]
[346895067,1735345838383,-500.0,0.00012277,2]
[346895070,1735345838395,-556.05,0.00012277,2]
[346895071,1735345838403,-673.35,0.00012277,2]
[346895079,1735345838458,-500.0,0.00012277,2]
[346895080,1735345838467,-500.0,0.00012277,2]
[346895082,1735345838476,-766.02,0.00012277,2]
[346895084,1735345838485,-1452.59,0.00012277,2]
[346895086,1735345838494,-404.0369333,0.00012277,2]
[346895088,1735345838503,-1141.37,0.00012277,2]
[346895090,1735345838513,-621.2,0.00012277,2]
[346895092,1735345838522,-6224.72,0.00012277,2]
[346895094,1735345838531,-500.0,0.00012277,2]
[346895096,1735345838540,-873.18,0.00012277,2]
[346895098,1735345838550,-500.0,0.00012277,2]
[346895100,1735345838558,-500.0,0.00012277,2]
[346895102,1735345838567,-766.3,0.00012277,2]
[346895104,1735345838576,-546.27,0.00012277,2]
[346895106,1735345838586,-500.0,0.00012277,2]
[346895108,1735345838595,-500.0,0.00012277,2]
[346895110,1735345838604,-750.32,0.00012277,2]
[346895112,1735345838613,-746.85,0.00012277,2]
[346895114,1735345838623,-995.73,0.00012277,2]
[346895116,1735345838632,-5107.95,0.00012277,2]
[346895118,1735345838641,-540.75,0.00012277,2]
[346895120,1735345838650,-636.94287561,0.00012278,2]
[346895122,1735345838660,-525.43246113,0.00012278,2]
[346895124,1735345838669,-155.57861416,0.00012278,2]
[346895126,1735345838679,-610.19232315,0.00012278,2]
[346895128,1735345838688,-500.0,0.00012278,2]
[346895130,1735345838697,-500.0,0.00012278,2]
[346895132,1735345838706,-500.0,0.00012278,2]
[346895134,1735345838715,-500.0,0.00012278,2]
[346895136,1735345838724,-500.0,0.00012278,2]
[346895137,1735345838733,-500.0,0.00012278,2]
[346895139,1735345838743,-500.0,0.00012278,2]
[346895140,1735345838751,-500.0,0.00012278,2]
[346895141,1735345838760,-500.0,0.00012278,2]
[346895142,1735345838769,-2313.12,0.00012278,2]
[346895143,1735345838779,-1709.99,0.00012278,2]
[346895144,1735345838791,-562.10427745,0.00012278,2]
[346895145,1735345838805,-4116.42,0.00012278,2]
[346895146,1735345838814,-500.0,0.00012278,2]
[346895147,1735345838823,-500.0,0.00012278,2]
[346895148,1735345838832,-500.0,0.00012278,2]
[346895149,1735345838841,-503.65,0.00012279,2]
[346895150,1735345838850,-40752.57406288,0.00012297,2]
[346895151,1735345838866,-42912.03224951,0.00012297,2]
[346895152,1735345838887,-994.32934919,0.00012297,2]
[346895167,1735345839757,-320.88861565,0.00011729,2]
[346895169,1735345839769,-73.72718435,0.00011729,2]
[346895171,1735345839778,-3311.7168839,0.00012297,2]
[346895174,1735345839791,-3854.00000001,0.00012297,2]
[346895176,1735345839803,-2454.873683,0.00012297,2]
[346895179,1735345839822,-497.75,0.00012297,2]
[346895181,1735345839834,-35091.41435306,0.00012297,2]
[346895192,1735345839924,-733.60120769,0.00012297,2]
[346895197,1735345839980,-465.30632799,0.00012297,2]
[346895199,1735345839991,-1203.86999937,0.00012297,2]
[346895201,1735345840002,-4709.29051433,0.00012297,2]
[346895206,1735345840040,-282.52999028,0.00012297,2]
[346895209,1735345840051,-1000.008,0.00012297,2]
[346895215,1735345840101,-3644.6,0.00012297,2]
[346895260,1735345842777,-500.0,0.00011898,2]
[346895261,1735345842788,-121.80031183,0.00011979,2]
[346895262,1735345842800,-378.19968817,0.00011979,2]
[346895263,1735345842809,-551.9694337,0.00012172,2]
[346895264,1735345842819,-500.0,0.00012253,2]
[346895265,1735345842828,-118579.83087813,0.00012297,2]
[346895267,1735345842839,-3657.74061708,0.00012297,2]
[346895268,1735345842850,-78635.27008334,0.00012297,2]
[346895269,1735345842941,-9782.1,0.00012297,2]
[346895270,1735345842953,-1769.80524837,0.00012297,2]
[346895271,1735345843000,-1000.0,0.00012297,2]
[346895272,1735345843014,-306.06,0.00012297,2]
[346895273,1735345843025,-8676.32477536,0.00012297,2]
[346895288,1735345845789,-720.59,0.00011978,2]
[346895289,1735345845798,-720.59,0.00012252,2]
[346895290,1735345845808,-1641.62353809,0.00012297,2]
[346895291,1735345845819,-24986.83183771,0.00012297,2]
[346895292,1735345845827,-209.83202126,0.00012297,2]
[346895293,1735345845836,-13514.7911539,0.00012298,2]
[346895294,1735345845847,-29542.22537003,0.00012298,2]
[346895295,1735345845864,-1204.3930419,0.00012298,2]
[346895296,1735345845954,-250.65,0.00011898,2]
[346895297,1735345845963,-4069.03492593,0.00012298,2]
[346895298,1735345845977,-532.19886339,0.00012298,2]
[346895299,1735345846009,-1500.0,0.00012298,2]
[346895301,1735345846080,-244.20566155,0.00012298,2]
[346895302,1735345846101,-1951853.18067091,0.00012298,2]
[346895369,1735346161232,242.09,8.883e-05,2]
[346895370,1735346161255,374.43,8.883e-05,2]
[346895889,1735347032043,-245.9,0.00010407,2]
[346895890,1735347032056,-166.17,0.00010482,2]
[346895891,1735347032065,-63.480835,0.00010523,2]
[346895892,1735347032099,-317.469165,0.00010523,2]
[346895893,1735347032108,-374.41,0.0001054,2]
[346895894,1735347032117,-381.06,0.00010573,2]
[346895895,1735347032126,-368.64,0.00010573,2]
[346895896,1735347032135,-378.42,0.00010573,2]
[346895897,1735347032144,-89.07791431,0.00010573,2]
[346895898,1735347032155,-286.16208569,0.00010573,2]
[346895899,1735347032164,-363.25857418,0.00010573,2]
[346895900,1735347032175,-18.71142582,0.00010573,2]
[346895901,1735347032184,-375.93,0.00010573,2]
[346895902,1735347032194,-371.95,0.00010573,2]
[346895903,1735347032203,-382.48,0.00010573,2]
[346895904,1735347032213,-380.47,0.00010573,2]
[346895905,1735347032222,-379.06,0.00010573,2]
[346895906,1735347032232,-254.44,0.00010574,2]
[346895907,1735347032242,-245.65,0.00010574,2]
[346895908,1735347032251,-245.73,0.00010574,2]
[346895909,1735347032260,-251.99,0.00010574,2]
[346895910,1735347032270,-248.55,0.00010574,2]
[346895911,1735347032279,-371.37,0.00010574,2]
[346895912,1735347032289,-378.73,0.00010574,2]
[346895913,1735347032298,-377.34,0.00010574,2]
[346895914,1735347032307,-381.68,0.00010574,2]
[346895915,1735347032317,-380.14,0.00010574,2]
[346895916,1735347032327,-376.55,0.00010574,2]
[346895917,1735347032336,-380.66,0.00010574,2]